fUST/lending_fUST_20250627
["ID","MTS","AMOUNT","RATE_DAILY","PERIOD"]
[368120738,1751029862131,-1500.0,0.00023068,2]
[368120739,1751029862141,-1500.0,0.00023068,2]
[368120740,1751029862151,-1500.0,0.00023068,2]
[368120741,1751029862161,-154.4173165,0.00023068,2]
[368120742,1751029862171,-1500.0,0.00023068,2]
[368120743,1751029862181,-1500.0,0.00023068,2]
[368120744,1751029862191,-1500.0,0.00023068,2]
[368120745,1751029862200,-295.0,0.0002308,5]
[368120746,1751029862210,-213.75309343,0.000231,30]
[368120747,1751029862220,-524.32400359,0.000231,30]
[368120748,1751029862230,-151.0,0.00023188,7]
[368120749,1751029862240,-10118.81432848,0.0002321,8]
[368120750,1751029862249,-151.0,0.00023287,7]
[368120751,1751029862259,-151.0,0.00023287,7]
[368120752,1751029862272,-151.0,0.00023287,7]
[368120753,1751029862282,-1822.186795,0.00023287,7]
[368120754,1751029862292,-1822.186795,0.00023287,7]
[368120755,1751029862302,-237.871569,0.00023287,7]
[368120756,1751029862312,-237.871569,0.00023287,7]
[368120757,1751029862322,-151.0,0.00023287,7]
[368120758,1751029862333,-151.0,0.00023287,7]
[368120759,1751029862343,-391.441034,0.00023287,7]
[368120760,1751029862354,-391.441034,0.00023287,7]
[368120761,1751029862364,-151.0,0.00023287,7]
[368120762,1751029862374,-484.603058,0.00023287,7]
[368120763,1751029862384,-460.0,0.00023287,2]
[368120764,1751029862393,-484.603058,0.00023287,7]
[368120765,1751029862404,-460.0,0.00023287,2]
[368120766,1751029862413,-460.0,0.00023287,2]
[368120767,1751029862423,-962.79,0.00023287,2]
[368120768,1751029862432,-326.64766857,0.00023287,2]
[368120769,1751029862442,-151.0,0.00023287,7]
[368120770,1751029862452,-460.0,0.00023287,2]
[368120771,1751029862462,-460.0,0.00023287,2]
[368120772,1751029862471,-460.0,0.00023287,2]
[368120773,1751029862481,-872.16,0.00023287,2]
[368120774,1751029862491,-490.28,0.00023287,2]
[368120775,1751029862500,-676.53,0.00023287,2]
[368120776,1751029862510,-1544.03,0.00023287,2]
[368120777,1751029862524,-1861.18,0.00023287,2]
[368120778,1751029862534,-460.0,0.00023287,2]
[368120779,1751029862543,-2946.71,0.00023287,2]
[368120780,1751029862553,-6518.4,0.00023287,2]
[368120781,1751029862563,-460.0,0.00023287,2]
[368120782,1751029862573,-1266.37,0.00023287,2]
[368120783,1751029862584,-460.0,0.00023287,2]
[368120784,1751029862593,-1132.2,0.00023287,2]
[368120785,1751029862603,-765.43,0.00023287,2]
[368120786,1751029862613,-460.0,0.00023287,2]
[368120787,1751029862622,-848.57,0.00023287,2]
[368120788,1751029862632,-5598.03,0.00023287,2]
[368120789,1751029862642,-460.0,0.00023287,2]
[368120790,1751029862653,-460.0,0.00023287,2]
[368120791,1751029862664,-807.46,0.00023287,2]
[368120792,1751029862675,-2217.11,0.00023287,2]
[368120793,1751029862684,-851.26,0.00023287,2]
[368120794,1751029862694,-1687.24,0.00023287,2]
[368120795,1751029862703,-682.9,0.00023287,2]
[368120796,1751029862713,-464.33,0.00023287,2]
[368120797,1751029862723,-460.0,0.00023287,2]
[368120798,1751029862732,-626.65,0.00023287,2]
[368120799,1751029862742,-778.42,0.00023287,2]
[368120800,1751029862751,-1807.73,0.00023287,2]
[368120801,1751029862761,-2700.44,0.00023287,2]
[368120802,1751029862771,-1046.99,0.00023287,2]
[368120803,1751029862780,-1874.32,0.00023287,2]
[368120804,1751029862790,-1037.07,0.00023287,2]
[368120805,1751029862800,-627.06,0.00023287,2]
[368120806,1751029862810,-460.0,0.00023287,2]
[368120807,1751029862819,-460.0,0.00023287,2]
[368120808,1751029862829,-665.9,0.00023287,2]
[368120809,1751029862843,-3786.78,0.00023287,2]
[368120810,1751029862853,-1216.38,0.00023287,2]
[368120811,1751029862862,-727.16,0.00023287,2]
[368120812,1751029862872,-3017.37,0.00023287,2]
[368120813,1751029862883,-4525.56,0.00023287,2]
[368120814,1751029862892,-515.06,0.00023287,2]
[368120815,1751029862902,-2147.92,0.00023287,2]
[368120816,1751029862913,-954.2,0.00023287,2]
[368120817,1751029862924,-848.16,0.00023287,2]
[368120818,1751029862934,-464.02,0.00023287,2]
[368120819,1751029862944,-5421.31,0.00023287,2]
[368120820,1751029862954,-402.58129651,0.00023287,2]
[368120821,1751029862964,-581.27,0.00023287,2]
[368120822,1751029862974,-683.54,0.00023287,2]
[368120823,1751029862984,-151.0,0.00023288,2]
[368120824,1751029862994,-325.549941,0.0002329,7]
[368120825,1751029863004,-325.549941,0.0002329,7]
[368120826,1751029863014,-238.482201,0.0002329,7]
[368120827,1751029863024,-238.482201,0.0002329,7]
[368120828,1751029863033,-151.0,0.0002329,7]
[368120829,1751029863043,-151.0,0.0002329,7]
[368120830,1751029863052,-151.0,0.0002329,7]
[368120831,1751029863062,-1294.823434,0.0002329,7]
[368120832,1751029863073,-1294.823434,0.0002329,7]
[368120833,1751029863083,-337.726261,0.0002329,7]
[368120834,1751029863092,-337.726261,0.0002329,7]
[368120835,1751029863101,-1059.846132,0.0002329,2]
[368120836,1751029863111,-1059.846132,0.0002329,2]
[368120837,1751029863121,-546.13404743,0.0002329,4]
[368120838,1751029863131,-546.13404743,0.0002329,4]
[368120839,1751029863141,-546.13404743,0.0002329,4]
[368120840,1751029863151,-546.13404743,0.0002329,4]
[368120841,1751029863160,-546.13404743,0.0002329,4]
[368120842,1751029863170,-546.13404743,0.0002329,4]
[368120843,1751029863180,-546.13404743,0.0002329,4]
[368120844,1751029863189,-546.13404743,0.0002329,4]
[368120845,1751029863198,-546.13404743,0.0002329,4]
[368120846,1751029863208,-546.13404743,0.0002329,4]
[368120847,1751029863217,-546.13404743,0.0002329,4]
[368120848,1751029863227,-546.13404743,0.0002329,4]
[368120849,1751029863236,-546.13404743,0.0002329,4]
[368120850,1751029863245,-546.13404743,0.0002329,4]
[368120851,1751029863255,-546.13404743,0.0002329,4]
[368120852,1751029863264,-546.13404743,0.0002329,4]
[368120853,1751029863274,-546.13404743,0.0002329,4]
[368120854,1751029863284,-546.13404743,0.0002329,4]
[368120855,1751029863295,-546.13404743,0.0002329,4]
[368120856,1751029863305,-546.13,0.0002329,4]
[368120857,1751029863315,-1274.31277733,0.0002329,4]
[368120858,1751029863326,-1274.31277733,0.0002329,4]
[368120859,1751029863337,-1274.31277733,0.0002329,4]
[368120860,1751029863347,-1274.31277733,0.0002329,4]
[368120861,1751029863356,-1274.31277733,0.0002329,4]
[368120862,1751029863367,-1274.31277733,0.0002329,4]
[368120863,1751029863376,-1274.31277733,0.0002329,4]
[368120864,1751029863386,-1274.31277733,0.0002329,4]
[368120865,1751029863396,-1274.31277733,0.0002329,4]
[368120866,1751029863406,-1274.31277733,0.0002329,4]
[368120867,1751029863416,-1274.31277733,0.0002329,4]
[368120868,1751029863426,-1274.31277733,0.0002329,4]
[368120869,1751029863435,-1274.31277733,0.0002329,4]
[368120870,1751029863445,-1274.31277733,0.0002329,4]
[368120871,1751029863455,-1274.31277733,0.0002329,4]
[368120872,1751029863465,-1274.31277733,0.0002329,4]
[368120873,1751029863475,-1274.31277733,0.0002329,4]
[368120874,1751029863485,-1274.31277733,0.0002329,4]
[368120875,1751029863494,-1274.31277733,0.0002329,4]
[368120876,1751029863504,-1274.31,0.0002329,4]
[368120877,1751029863514,-298.10111853,0.0002329,4]
[368120878,1751029863526,-298.10111853,0.0002329,4]
[368120879,1751029863536,-298.10111853,0.0002329,4]
[368120880,1751029863546,-298.10111853,0.0002329,4]
[368120881,1751029863556,-298.10111853,0.0002329,4]
[368120882,1751029863566,-298.10111853,0.0002329,4]
[368120883,1751029863575,-298.10111853,0.0002329,4]
[368120884,1751029863586,-298.10111853,0.0002329,4]
[368120885,1751029863595,-298.10111853,0.0002329,4]
[368120886,1751029863605,-298.10111853,0.0002329,4]
[368120887,1751029863615,-298.10111853,0.0002329,4]
[368120888,1751029863624,-298.10111853,0.0002329,4]
[368120889,1751029863634,-298.10111853,0.0002329,4]
[368120890,1751029863643,-298.10111853,0.0002329,4]
[368120891,1751029863653,-298.10111853,0.0002329,4]
[368120892,1751029863662,-298.10111853,0.0002329,4]
[368120893,1751029863672,-298.10111853,0.0002329,4]
[368120894,1751029863681,-298.10111853,0.0002329,4]
[368120895,1751029863691,-298.10111853,0.0002329,4]
[368120896,1751029863700,-298.1,0.0002329,4]
[368120897,1751029863710,-695.56927658,0.0002329,4]
[368120898,1751029863720,-695.56927658,0.0002329,4]
[368120899,1751029863729,-695.56927658,0.0002329,4]
[368120900,1751029863739,-695.56927658,0.0002329,4]
[368120901,1751029863749,-695.56927658,0.0002329,4]
[368120902,1751029863759,-695.56927658,0.0002329,4]
[368120903,1751029863768,-695.56927658,0.0002329,4]
[368120904,1751029863778,-695.56927658,0.0002329,4]
[368120905,1751029863788,-695.56927658,0.0002329,4]
[368120906,1751029863798,-695.56927658,0.0002329,4]
[368120907,1751029863808,-695.56927658,0.0002329,4]
[368120908,1751029863818,-695.56927658,0.0002329,4]
[368120909,1751029863828,-695.56927658,0.0002329,4]
[368120910,1751029863842,-695.56927658,0.0002329,4]
[368120911,1751029863852,-695.56927658,0.0002329,4]
[368120912,1751029863861,-695.56927658,0.0002329,4]
[368120913,1751029863871,-695.56927658,0.0002329,4]
[368120914,1751029863881,-695.56927658,0.0002329,4]
[368120915,1751029863891,-695.56927658,0.0002329,4]
[368120916,1751029863905,-695.56,0.0002329,4]
[368120917,1751029863916,-74131.49,0.000233,2]
[368120918,1751029863927,-810.23,0.000233,3]
[368120919,1751029864068,-151.0,0.000233,7]
[368120920,1751029864094,-151.0,0.000233,7]
[368120921,1751029864103,-151.0,0.000233,7]
[368120922,1751029864113,-280.313534,0.000233,7]
[368120923,1751029864123,-188.468815,0.000233,7]
[368120924,1751029864132,-280.313534,0.000233,7]
[368120925,1751029864142,-151.0,0.000233,7]
[368120926,1751029864151,-151.0,0.000233,7]
[368120927,1751029864161,-260.329697,0.000233,7]
[368120928,1751029864171,-152.335425,0.000233,7]
[368120929,1751029864180,-151.0,0.000233,7]
[368120930,1751029864190,-172.711744,0.000233,7]
[368120931,1751029864200,-151.0,0.000233,7]
[368120932,1751029864210,-151.0,0.000233,7]
[368120933,1751029864219,-151.0,0.000233,7]
[368120934,1751029864228,-151.0,0.000233,7]
[368120935,1751029864238,-151.0,0.000233,7]
[368120936,1751029864247,-365.776085,0.000233,7]
[368120937,1751029864256,-365.776085,0.000233,7]
[368120938,1751029864266,-151.0,0.00023314,7]
[368120939,1751029864275,-151.0,0.00023314,7]
[368120940,1751029864285,-444.860629,0.00023314,7]
[368120941,1751029864294,-444.860629,0.00023314,7]
[368120942,1751029864304,-151.0,0.00023315,2]
[368120943,1751029864314,-151.0,0.00023343,2]
[368120944,1751029864324,-217.90292315,0.0002337,2]
[368120945,1751029864337,-1400.0,0.00023379,2]
[368120946,1751029864346,-1600.0,0.00023386,2]
[368120947,1751029864356,-150.0,0.00023416,2]
[368120948,1751029864366,-10118.81432848,0.00023417,9]
[368120949,1751029864375,-1400.0,0.00023419,2]
[368120950,1751029864383,-198.0,0.00023486,7]
[368120951,1751029864392,-395.397538,0.00023486,7]
[368120952,1751029864401,-1000.0,0.000235,2]
[368120953,1751029864411,-300.0,0.000235,30]
[368120954,1751029864420,-10400.39089948,0.00023501,2]
[368120955,1751029864429,-631.0,0.00023515,2]
[368120956,1751029864439,-250.0,0.00023521,2]
[368120957,1751029864448,-250.0,0.00023521,2]
[368120958,1751029864458,-1400.0,0.00023521,2]
[368120959,1751029864467,-5000.0,0.00023558,2]
[368120960,1751029864477,-249.895528,0.00023561,7]
[368120961,1751029864486,-329.96,0.00023561,2]
[368120962,1751029864495,-329.96,0.00023561,2]
[368120963,1751029864505,-329.96,0.00023561,2]
[368120964,1751029864514,-329.96,0.00023561,2]
[368120965,1751029864524,-329.96,0.00023561,2]
[368120966,1751029864533,-329.96,0.00023561,2]
[368120967,1751029864542,-329.96,0.00023561,2]
[368120968,1751029864552,-329.96,0.00023561,2]
[368120969,1751029864561,-329.96,0.00023561,2]
[368120970,1751029864570,-329.96,0.00023561,2]
[368120971,1751029864579,-329.96,0.00023561,2]
[368120972,1751029864588,-329.96,0.00023561,2]
[368120973,1751029864597,-329.96,0.00023561,2]
[368120974,1751029864607,-329.96,0.00023561,2]
[368120975,1751029864617,-329.96,0.00023561,2]
[368120976,1751029864626,-329.96,0.00023561,2]
[368120977,1751029864635,-329.96,0.00023561,2]
[368120978,1751029864644,-151.0,0.00023561,7]
[368120979,1751029864653,-185.0,0.00023561,7]
[368120980,1751029864663,-460.0,0.00023561,2]
[368120981,1751029864672,-460.0,0.00023561,2]
[368120982,1751029864681,-262.401285,0.00023561,7]
[368120983,1751029864690,-262.401285,0.00023561,7]
[368120984,1751029864699,-460.0,0.00023561,2]
[368120985,1751029864708,-220.64361,0.00023561,7]
[368120986,1751029864717,-962.79,0.00023561,2]
[368120987,1751029864727,-462.2,0.00023561,2]
[368120988,1751029864736,-319.82668253,0.00023561,2]
[368120989,1751029864745,-460.0,0.00023561,2]
[368120990,1751029864754,-872.16,0.00023561,2]
[368120991,1751029864763,-490.28,0.00023561,2]
[368120992,1751029864772,-676.53,0.00023561,2]
[368120993,1751029864782,-1544.03,0.00023561,2]
[368120994,1751029864792,-1861.18,0.00023561,2]
[368120995,1751029864801,-460.0,0.00023561,2]
[368120996,1751029864811,-2946.71,0.00023561,2]
[368120997,1751029864821,-6518.4,0.00023561,2]
[368120998,1751029864831,-584.97909017,0.00023561,2]
[368120999,1751029864843,-1266.37,0.00023561,2]
[368121000,1751029864854,-195.46,0.00023561,2]
[368121001,1751029864864,-1132.2,0.00023561,2]
[368121002,1751029864875,-765.43,0.00023561,2]
[368121003,1751029864884,-460.0,0.00023561,2]
[368121004,1751029864894,-848.57,0.00023561,2]
[368121005,1751029864904,-5598.03,0.00023561,2]
[368121006,1751029864916,-460.0,0.00023561,2]
[368121007,1751029864926,-460.0,0.00023561,2]
[368121008,1751029864936,-807.46,0.00023561,2]
[368121009,1751029864945,-2217.11,0.00023561,2]
[368121010,1751029864954,-851.26,0.00023561,2]
[368121011,1751029864964,-1687.24,0.00023561,2]
[368121012,1751029864973,-682.9,0.00023561,2]
[368121013,1751029864983,-464.33,0.00023561,2]
[368121014,1751029864992,-460.0,0.00023561,2]
[368121015,1751029865003,-626.65,0.00023561,2]
[368121016,1751029865012,-778.42,0.00023561,2]
[368121017,1751029865022,-1807.73,0.00023561,2]
[368121018,1751029865031,-2700.44,0.00023561,2]
[368121019,1751029865041,-1046.99,0.00023561,2]
[368121020,1751029865051,-1874.32,0.00023561,2]
[368121021,1751029865060,-1037.07,0.00023561,2]
[368121022,1751029865070,-627.06,0.00023561,2]
[368121023,1751029865079,-460.0,0.00023561,2]
[368121024,1751029865089,-460.0,0.00023561,2]
[368121025,1751029865098,-665.9,0.00023561,2]
[368121026,1751029865108,-3786.78,0.00023561,2]
[368121027,1751029865118,-1216.38,0.00023561,2]
[368121028,1751029865127,-727.16,0.00023561,2]
[368121029,1751029865137,-3017.37,0.00023561,2]
[368121030,1751029865146,-4525.56,0.00023561,2]
[368121031,1751029865156,-515.06,0.00023561,2]
[368121032,1751029865165,-2147.92,0.00023561,2]
[368121033,1751029865175,-954.2,0.00023561,2]
[368121034,1751029865184,-848.16,0.00023561,2]
[368121035,1751029865193,-464.02,0.00023561,2]
[368121036,1751029865202,-5421.31,0.00023561,2]
[368121037,1751029865211,-581.27,0.00023561,2]
[368121038,1751029865221,-683.54,0.00023561,2]
[368121039,1751029865230,-500.0,0.00023582,2]
[368121040,1751029865239,-900.0,0.00023611,2]
[368121041,1751029865248,-1001.34400268,0.00023616,2]
[368121042,1751029865258,-1830.56958791,0.00023616,2]
[368121043,1751029865267,-2000.0,0.00023616,2]
[368121044,1751029865276,-2400.0,0.00023616,2]
[368121045,1751029865287,-2000.0,0.00023616,2]
[368121046,1751029865296,-2000.56304579,0.00023616,2]
[368121047,1751029865305,-2000.0,0.00023616,2]
[368121048,1751029865315,-2000.0,0.00023616,2]
[368121049,1751029865323,-2000.0,0.00023616,2]
[368121050,1751029865333,-2000.0,0.00023616,2]
[368121051,1751029865342,-2000.0,0.00023616,2]
[368121052,1751029865351,-2000.0,0.00023616,2]
[368121053,1751029865361,-10118.81432848,0.00023624,9]
[368121054,1751029865370,-1600.0,0.00023671,2]
[368121055,1751029865379,-202.5,0.00023671,2]
[368121056,1751029865389,-460.0,0.00023671,2]
[368121057,1751029865398,-460.0,0.00023671,2]
[368121058,1751029865412,-460.0,0.00023671,2]
[368121059,1751029865422,-460.0,0.00023671,2]
[368121060,1751029865431,-334.12987993,0.00023671,2]
[368121061,1751029865440,-154.06460479,0.00023671,2]
[368121062,1751029865450,-162.192,0.00023671,2]
[368121063,1751029865459,-272.976,0.00023671,2]
[368121064,1751029865468,-225.0,0.00023671,2]
[368121065,1751029865478,-195.0,0.00023671,2]
[368121066,1751029865487,-600.0,0.00023671,2]
[368121067,1751029865496,-600.0,0.00023671,2]
[368121068,1751029865506,-428.174,0.00023671,2]
[368121069,1751029865515,-600.0,0.00023671,2]
[368121070,1751029865525,-411.2696,0.00023671,2]
[368121071,1751029865538,-231.33915,0.00023671,2]
[368121072,1751029865547,-590.08,0.00023671,2]
[368121073,1751029865556,-354.048,0.00023671,2]
[368121074,1751029865566,-236.032,0.00023671,2]
[368121075,1751029865575,-337.5,0.00023671,2]
[368121076,1751029865585,-487.5,0.00023671,2]
[368121077,1751029865594,-162.192,0.00023671,2]
[368121078,1751029865603,-600.0,0.00023671,2]
[368121079,1751029865613,-437.142,0.00023671,2]
[368121080,1751029865622,-414.8568,0.00023671,2]
[368121081,1751029865631,-383.73239062,0.00023671,2]
[368121082,1751029865641,-518.3633125,0.00023671,2]
[368121083,1751029865650,-311.0179875,0.00023671,2]
[368121084,1751029865660,-207.345325,0.00023671,2]
[368121085,1751029865670,-230.23943438,0.00023671,2]
[368121086,1751029865679,-1600.0,0.00023676,2]
[368121087,1751029865689,-620.0,0.00023683,2]
[368121088,1751029865698,-900.0,0.00023687,2]
[368121089,1751029865708,-620.0,0.00023696,2]
[368121090,1751029865719,-1600.0,0.00023709,2]
[368121091,1751029865728,-631.0,0.00023738,2]
[368121092,1751029865738,-988.8783625,0.00023753,3]
[368121093,1751029865747,-620.0,0.00023765,2]
[368121094,1751029865758,-1400.0,0.00023773,2]
[368121095,1751029865768,-5164.0,0.00023785,2]
[368121096,1751029865777,-200.0,0.000238,30]
[368121097,1751029865786,-9698.42549535,0.000238,2]
[368121098,1751029865797,-151.0,0.000238,7]
[368121099,1751029865808,-1059.846132,0.000238,2]
[368121100,1751029865818,-1059.84614,0.000238,2]
[368121101,1751029865827,-194.39251329,0.00023809,2]
[368121102,1751029865839,-1400.0,0.00023815,2]
[368121103,1751029865849,-10118.81432848,0.00023831,10]
[368121104,1751029865860,-151.0,0.00023835,7]
[368121105,1751029865870,-237.871569,0.00023835,7]
[368121106,1751029865881,-237.871569,0.00023835,7]
[368121107,1751029865890,-151.0,0.00023835,7]
[368121108,1751029865899,-177.914021,0.00023835,7]
[368121109,1751029865910,-391.441034,0.00023835,7]
[368121110,1751029865919,-391.441034,0.00023835,7]
[368121111,1751029865929,-151.0,0.00023835,7]
[368121112,1751029865939,-329.96,0.00023835,2]
[368121113,1751029865948,-460.0,0.00023835,2]
[368121114,1751029865957,-460.0,0.00023835,2]
[368121115,1751029865967,-962.79,0.00023835,2]
[368121116,1751029865976,-325.549941,0.00023835,7]
[368121117,1751029865986,-151.0,0.00023835,7]
[368121118,1751029865995,-325.549941,0.00023835,7]
[368121119,1751029866004,-238.482201,0.00023835,7]
[368121120,1751029866014,-238.482201,0.00023835,7]
[368121121,1751029866023,-151.0,0.00023835,7]
[368121122,1751029866033,-203.299942,0.00023835,7]
[368121123,1751029866042,-460.0,0.00023835,2]
[368121124,1751029866051,-872.16,0.00023835,2]
[368121125,1751029866063,-490.28,0.00023835,2]
[368121126,1751029866072,-1294.823434,0.00023835,7]
[368121127,1751029866082,-1294.823434,0.00023835,7]
[368121128,1751029866091,-676.53,0.00023835,2]
[368121129,1751029866100,-1544.03,0.00023835,2]
[368121130,1751029866109,-1861.18,0.00023835,2]
[368121131,1751029866118,-460.0,0.00023835,2]
[368121132,1751029866127,-2946.71,0.00023835,2]
[368121133,1751029866137,-6518.4,0.00023835,2]
[368121134,1751029866146,-1266.37,0.00023835,2]
[368121135,1751029866155,-1132.2,0.00023835,2]
[368121136,1751029866166,-765.43,0.00023835,2]
[368121137,1751029866175,-265.3,0.00023835,2]
[368121138,1751029866185,-848.57,0.00023835,2]
[368121139,1751029866194,-5598.03,0.00023835,2]
[368121140,1751029866203,-460.0,0.00023835,2]
[368121141,1751029866213,-493.4168238,0.00023835,2]
[368121142,1751029866222,-807.46,0.00023835,2]
[368121143,1751029866231,-2217.11,0.00023835,2]
[368121144,1751029866241,-851.26,0.00023835,2]
[368121145,1751029866252,-1687.24,0.00023835,2]
[368121146,1751029866261,-682.9,0.00023835,2]
[368121147,1751029866271,-464.33,0.00023835,2]
[368121148,1751029866281,-337.726261,0.00023835,7]
[368121149,1751029866291,-337.726261,0.00023835,7]
[368121150,1751029866300,-460.0,0.00023835,2]
[368121151,1751029866311,-626.65,0.00023835,2]
[368121152,1751029866321,-778.42,0.00023835,2]
[368121153,1751029866331,-1807.73,0.00023835,2]
[368121154,1751029866341,-2700.44,0.00023835,2]
[368121155,1751029866350,-1046.99,0.00023835,2]
[368121156,1751029866359,-1874.32,0.00023835,2]
[368121157,1751029866368,-1037.07,0.00023835,2]
[368121158,1751029866378,-627.06,0.00023835,2]
[368121159,1751029866387,-460.0,0.00023835,2]
[368121160,1751029866396,-460.0,0.00023835,2]
[368121161,1751029866406,-665.9,0.00023835,2]
[368121162,1751029866415,-3786.78,0.00023835,2]
[368121163,1751029866424,-1216.38,0.00023835,2]
[368121164,1751029866434,-727.16,0.00023835,2]
[368121165,1751029866443,-3017.37,0.00023835,2]
[368121166,1751029866452,-4525.56,0.00023835,2]
[368121167,1751029866462,-515.06,0.00023835,2]
[368121168,1751029866471,-2147.92,0.00023835,2]
[368121169,1751029866481,-954.2,0.00023835,2]
[368121170,1751029866491,-848.16,0.00023835,2]
[368121171,1751029866500,-464.02,0.00023835,2]
[368121172,1751029866509,-5421.31,0.00023835,2]
[368121173,1751029866518,-581.27,0.00023835,2]
[368121174,1751029866527,-683.54,0.00023835,2]
[368121175,1751029866536,-620.0,0.00023846,2]
[368121176,1751029866545,-1600.0,0.00023853,2]
[368121177,1751029866554,-900.0,0.00023866,2]
[368121178,1751029866564,-151.0,0.00023866,7]
[368121179,1751029866573,-484.603058,0.00023866,7]
[368121180,1751029866583,-484.603058,0.00023866,7]
[368121181,1751029866591,-631.0,0.00023875,2]
[368121182,1751029866601,-1400.0,0.00023883,2]
[368121183,1751029866610,-2161.0,0.00023886,2]
[368121184,1751029866619,-654.0,0.00023886,2]
[368121185,1751029866628,-406.0,0.00023886,2]
[368121186,1751029866638,-507.8810636,0.00023898,2]
[368121187,1751029866647,-151.0,0.00023899,7]
[368121188,1751029866656,-1575.56984029,0.00023899,2]
[368121189,1751029866666,-15049.53424269,0.000239,7]
[368121190,1751029866675,-1822.186795,0.000239,7]
[368121191,1751029866684,-1822.186795,0.000239,7]
[368121192,1751029866693,-500.0,0.00023903,2]
[368121193,1751029866702,-312.69668974,0.00023948,4]
[368121194,1751029866711,-10400.39089948,0.00023956,2]
[368121195,1751029866720,-900.0,0.00023958,2]
[368121196,1751029866729,-1400.0,0.00023961,2]
[368121197,1751029866738,-300.0,0.00023964,2]
[368121198,1751029866747,-631.0,0.00023972,2]
[368121199,1751029866757,-500.0,0.00023974,2]
[368121200,1751029866767,-366.1147399,0.00024,2]
[368121201,1751029866776,-75707.45944557,0.00024,2]
[368121202,1751029866785,-1688.1136225,0.00024,2]
[368121203,1751029866795,-10118.52414351,0.00024,2]
[368121204,1751029866804,-121163.87784444,0.00024,2]
[368121205,1751029866814,-230.20892031,0.00024,7]
[368121206,1751029866823,-2000.0,0.00024,2]
[368121207,1751029866833,-12558.06783089,0.00024,10]
[368121208,1751029866845,-1558.04324766,0.00024,2]
[368121209,1751029866855,-151.0,0.00024,14]
[368121210,1751029866865,-11673.20497116,0.00024,2]
[368121211,1751029866874,-178.24890473,0.00024,7]
[368121212,1751029866884,-158.0,0.00024,2]
[368121213,1751029866893,-19242.41989749,0.00024,2]
[368121214,1751029866903,-2000.0,0.00024,2]
[368121215,1751029866915,-2000.0,0.00024,2]
[368121216,1751029866925,-160.0,0.00024,7]
[368121217,1751029866934,-160.0,0.00024,10]
[368121218,1751029866943,-160.0,0.00024,7]
[368121219,1751029866953,-160.0,0.00024,10]
[368121220,1751029866962,-1157.17811006,0.00024,2]
[368121221,1751029866971,-304.7615431,0.00024,30]
[368121222,1751029866980,-160.0,0.00024,7]
[368121223,1751029866990,-160.0,0.00024,10]
[368121224,1751029867001,-31093.70471521,0.00024,35]
[368121225,1751029867010,-234.11131208,0.00024,60]
[368121226,1751029867019,-160.0,0.00024,7]
[368121227,1751029867029,-160.0,0.00024,10]
[368121228,1751029867039,-13737.58,0.00024,7]
[368121229,1751029867048,-194080.12,0.00024,7]
[368121230,1751029867057,-10026.4,0.00024,7]
[368121231,1751029867066,-1002.59884115,0.00024,10]
[368121232,1751029867075,-151.0,0.00024,7]
[368121233,1751029867084,-160.0,0.00024,7]
[368121234,1751029867093,-160.0,0.00024,10]
[368121235,1751029867103,-151.0,0.00024,7]
[368121236,1751029867112,-192.949382,0.00024,7]
[368121237,1751029867122,-151.0,0.00024,7]